bitfinex-derivatives/quotes_ETHF0:USTF0_20250917
["timestamp","ask_amount","ask_price","bid_price","bid_amount"]
[1758136861525,3.2078,4485.6,4484.6,3.4518]
[1758136861716,3.2078,4485.6,4484.6,3.85295]
[1758136861916,3.2078,4485.6,4484.6,3.4518]
[1758136862120,3.2078,4486.2,4485.3,3.2078]
[1758136862322,3.2078,4486.2,4485.3,3.4518]
[1758136862528,3.2078,4486.2,4485.3,3.85289]
[1758136862924,3.2078,4486.2,4485.3,3.4518]
[1758136863524,3.67473,4486.2,4484.8,0.244]
[1758136863829,0.22295,4486.1,4484.8,0.64514]
[1758136864124,3.4518,4486.2,4485.0,0.40112]
[1758136864315,3.4518,4486.2,4485.3,3.2078]
[1758136864526,3.2078,4486.7,4485.4,0.244]
[1758136865020,3.2078,4487.2,4486.2,3.2078]
[1758136865222,3.2078,4487.8,4486.3,0.244]
[1758136865624,3.2078,4487.8,4486.7,3.2078]
[1758136865821,3.2078,4487.8,4486.8,0.244]
[1758136866924,0.022,4488.2,4487.7,3.2078]
[1758136868522,0.022,4488.2,4487.8,0.244]
[1758136869325,0.022,4488.2,4487.7,3.2078]
[1758136869929,3.2078,4487.8,4487.1,0.17586687]
[1758136870235,3.2078,4487.8,4487.0,3.4518]
[1758136871133,0.022,4488.2,4487.5,3.2078]
[1758136871331,0.022,4488.2,4487.6,0.244]
[1758136871929,0.022,4488.2,4487.5,3.2078]
[1758136872133,0.022,4488.2,4487.6,0.244]
[1758136873322,0.022,4488.2,4487.7,0.243]
[1758136875425,3.2078,4489.1,4488.0,3.2078]
[1758136875631,3.2078,4489.1,4488.1,0.243]
[1758136876031,3.2078,4489.1,4488.5,3.2078]
[1758136876235,40.8,4490.6,4488.5,3.4508]
[1758136876236,3.2078,4489.8,4488.5,3.4508]
[1758136876436,3.4508,4489.8,4488.5,3.4508]
[1758136876938,44.0078,4490.8,4489.3,3.2078]
[1758136877127,3.2078,4490.8,4489.3,3.4508]
[1758136877333,3.2078,4490.8,4489.8,3.2078]
[1758136877528,3.2078,4490.8,4489.8,3.4508]
[1758136878438,3.2078,4490.8,4489.8,3.62594995]
[1758136879437,0.243,4491.4,4489.8,3.62594995]
[1758136879438,3.4508,4491.4,4490.5,3.2078]
[1758136879645,3.4508,4491.4,4490.6,0.243]
[1758136880137,3.2078,4491.9,4490.6,0.243]
[1758136880636,3.2078,4491.9,4490.7,0.22266]
[1758136880941,3.2078,4491.9,4490.6,0.243]
[1758136881238,3.2078,4491.9,4490.6,0.42149836]
[1758136881636,3.2078,4491.9,4491.1,3.2078]
[1758136881830,3.2078,4491.9,4491.2,0.243]
[1758136883342,3.2078,4491.9,4490.6,0.17849836]
[1758136883343,3.2078,4491.9,4490.6,3.38629836]
[1758136883643,3.2078,4491.9,4491.0,0.243]
[1758136884037,3.2078,4491.9,4490.6,3.38629836]
[1758136884233,3.2078,4491.9,4490.6,3.62929836]
[1758136884439,3.2078,4491.4,4490.6,3.4508]
[1758136884844,3.2078,4490.9,4490.0,3.2078]
[1758136885044,0.22269,4490.8,4490.0,3.2078]
[1758136885247,0.22269,4490.8,4489.5,3.2078]
[1758136885451,3.2078,4490.4,4489.5,3.2078]
[1758136885747,3.2078,4489.9,4488.8,3.2078]
[1758136885943,3.2078,4489.9,4488.8,0.243]
[1758136886248,3.4508,4489.9,4488.5,36.107]
[1758136886442,3.4508,4489.9,4488.7,0.243]
[1758136886743,3.4508,4489.9,4488.8,3.2078]
[1758136887340,3.4508,4489.9,4488.7,0.243]
[1758136888042,3.4508,4489.9,4488.5,0.17421632]
[1758136888242,3.4508,4489.9,4488.3,3.2078]
[1758136888243,3.2078,4489.3,4488.3,3.2078]
[1758136888742,3.2078,4489.3,4488.4,0.243]
[1758136889741,3.4508,4489.8,4488.8,3.2078]
[1758136890047,3.2078,4489.8,4488.9,0.243]
[1758136890536,3.2078,4490.0,4488.8,3.2078]
[1758136890742,36.088,4492.1,4488.8,3.2078]
[1758136890743,3.2078,4489.6,4488.8,3.2078]
[1758136891142,3.2078,4489.6,4488.9,0.0222]
[1758136891343,0.22275,4489.5,4488.8,3.2078]
[1758136891538,0.243,4489.4,4488.8,3.2078]
[1758136892039,0.243,4489.4,4488.1,3.2078]
[1758136892234,3.2078,4489.6,4488.2,0.243]
[1758136892439,3.2078,4489.6,4488.6,3.2078]
[1758136892635,0.243,4490.1,4488.7,0.243]
[1758136892836,0.243,4490.1,4488.6,3.2078]
[1758136893041,3.2078,4489.6,4488.6,3.2078]
[1758136893440,3.2078,4489.6,4488.6,3.38322504]
[1758136893941,0.243,4489.5,4488.6,3.2078]
[1758136894441,0.243,4489.5,4488.4,0.17730567]
[1758136894646,0.243,4489.5,4488.3,0.243]
[1758136895052,3.2078,4489.1,4488.1,3.2078]
[1758136895247,0.243,4489.0,4488.1,3.38803884]
[1758136896051,0.243,4489.0,4488.1,3.2078]
[1758136896247,0.243,4489.0,4487.7,0.4168392]
[1758136896453,0.243,4489.0,4487.7,0.1738392]
[1758136896753,3.2078,4488.5,4487.3,0.0222]
[1758136896939,3.2078,4487.9,4487.3,0.0222]
[1758136898243,3.2078,4487.9,4487.4,0.1782]
[1758136899845,3.4508,4487.9,4487.4,0.1782]
[1758136900352,0.243,4487.9,4487.4,0.1782]
[1758136901947,3.2078,4487.8,4487.4,0.1782]
[1758136903045,3.2078,4487.8,4485.9,3.2078]
[1758136903046,0.22284,4487.7,4485.9,3.2078]
[1758136903352,3.2078,4486.4,4485.4,3.2078]
[1758136903542,0.243,4486.7,4485.4,3.2078]
[1758136903746,3.2078,4486.4,4485.4,3.2078]
[1758136906848,3.2078,4485.9,4485.5,0.0151]
[1758136907048,3.4508,4485.9,4485.5,0.1934]
[1758136907351,0.243,4485.9,4485.5,0.1934]
[1758136907855,3.4508,4485.9,4485.5,0.1934]
[1758136908455,0.243,4485.8,4485.5,0.1934]
[1758136908755,0.243,4486.2,4485.5,0.1934]
[1758136916456,3.2078,4486.0,4485.5,0.1934]
[1758136916861,3.2078,4486.5,4485.5,0.1934]
[1758136919058,0.22292,4486.4,4485.5,0.1934]
[1758136919263,3.2078,4486.0,4485.5,0.1934]
[1758136919459,0.242,4485.9,4485.5,0.1934]
[1758136920764,3.2078,4486.0,4485.5,0.1934]
[1758136921266,3.2078,4486.0,4485.5,0.0151]
[1758136921762,36.112,4487.8,4485.5,0.0151]
[1758136921763,0.242,4486.2,4485.5,0.0151]
[1758136922064,3.4498,4486.5,4485.5,0.0151]
[1758136922656,3.2078,4486.5,4485.5,0.0151]
[1758136922859,3.4498,4486.5,4485.5,0.0151]
[1758136923265,0.242,4486.5,4485.5,0.0151]
[1758136924164,3.4498,4486.5,4485.5,0.0151]
[1758136924964,0.22292,4486.4,4485.6,0.1783]
[1758136925366,3.4498,4486.5,4485.6,0.1783]
[1758136925566,0.242,4486.4,4485.6,0.1783]
[1758136925762,0.242,4486.3,4485.6,0.1783]
[1758136926361,0.242,4486.4,4485.6,0.1783]
[1758136926557,3.2078,4486.0,4485.6,0.1783]
[1758136928668,0.242,4486.4,4485.7,0.22293]
[1758136928971,0.242,4486.4,4485.6,3.3861]
[1758136929265,3.4498,4487.4,4486.2,3.2078]
[1758136929666,3.4498,4487.4,4486.2,3.43068]
[1758136930163,3.2078,4487.4,4486.8,3.2078]
[1758136930770,0.242,4487.8,4486.8,3.2078]
[1758136930964,0.242,4487.9,4486.8,3.2078]
[1758136932169,3.2078,4487.5,4486.8,3.2078]
[1758136932369,0.242,4487.6,4486.8,3.2078]
[1758136932563,3.2078,4488.0,4486.8,3.4498]
[1758136932767,0.51878068,4487.9,4486.8,3.4498]
[1758136932972,3.2078,4488.0,4486.8,3.4498]
[1758136934367,0.242,4488.2,4487.4,3.2078]
[1758136934672,0.242,4488.4,4487.4,3.2078]
[1758136935471,3.2078,4488.5,4487.4,3.2078]
[1758136935673,3.2078,4489.1,4487.9,3.2078]
[1758136935863,0.76007178,4489.0,4487.9,3.2078]
[1758136936068,0.242,4489.0,4487.9,3.2078]
[1758136937675,3.2078,4489.1,4487.9,3.2078]
[1758136938472,3.2078,4490.0,4488.9,3.2078]
[1758136938673,3.2078,4490.0,4487.1,1.00233]
[1758136938674,3.2078,4491.0,4489.5,3.2078]
[1758136938873,3.2078,4491.0,4488.0,1.00214]
[1758136938874,0.51686294,4490.9,4490.0,3.2078]
[1758136939172,0.242,4490.9,4490.0,3.2078]
[1758136939671,0.22269,4490.9,4489.5,3.2078]
[1758136939877,0.242,4490.8,4489.5,3.2078]
[1758136941375,3.2078,4490.1,4489.0,3.2078]
[1758136941676,3.4498,4490.1,4489.0,3.2078]
[1758136942382,3.2078,4490.1,4489.0,3.2078]
[1758136942574,0.242,4490.0,4489.0,3.2078]
[1758136942769,0.242,4490.0,4489.0,3.38919232]
[1758136943372,0.242,4490.0,4488.5,3.2078]
[1758136943878,3.2078,4489.6,4488.5,3.2078]
[1758136944179,0.242,4489.5,4489.1,3.2078]
[1758136944371,0.242,4489.8,4489.1,3.2078]
[1758136945568,3.2078,4489.7,4489.0,0.17856556]
[1758136945774,3.2078,4489.7,4488.6,3.2078]
[1758136945973,3.2078,4489.7,4488.6,3.4498]
[1758136946276,3.2078,4489.7,4488.6,3.62504101]
[1758136946776,3.2078,4489.7,4488.7,0.0222]
[1758136947375,3.2078,4489.2,4488.7,0.0222]
[1758136947679,0.242,4489.1,4488.7,0.0222]
[1758136947980,0.242,4489.0,4488.7,0.0222]
[1758136950575,4.22277,4488.9,4487.1,3.2078]
[1758136950876,3.2078,4488.1,4487.1,3.38889904]
[1758136951078,0.241,4488.0,4487.1,3.2078]
[1758136951481,3.2078,4487.4,4485.9,3.2078]
[1758136951678,0.241,4487.3,4485.9,3.6074855]
[1758136952087,3.2078,4487.4,4485.9,3.38461551]
[1758136952276,0.241,4487.3,4485.9,3.38461551]
[1758136952983,0.241,4487.3,4485.9,3.2078]
[1758136953280,3.2078,4487.4,4485.9,3.2078]
[1758136953482,0.241,4487.2,4485.9,3.2078]
[1758136953984,3.2078,4486.9,4486.0,0.0207]
[1758136954484,3.2078,4486.9,4486.0,0.199]
[1758136955575,0.241,4487.2,4486.0,0.199]
[1758136955576,3.2078,4486.4,4486.0,0.199]
[1758136955776,0.241,4486.3,4486.0,0.199]
[1758136955985,0.241,4486.3,4485.3,0.44589608]
[1758136955986,4.46391,4486.3,4485.3,0.44589608]
[1758136956283,3.2078,4485.4,4485.3,0.44589608]
[1758136956475,3.4488,4485.4,4485.3,0.44589608]
[1758136956876,3.2078,4485.4,4485.3,0.44589608]
[1758136957076,3.4488,4485.4,4485.3,0.44589608]
[1758136957676,3.2078,4485.4,4485.3,0.44589608]
[1758136957878,3.4488,4485.4,4485.3,0.44589608]
[1758136958480,3.2078,4485.4,4485.3,0.44589608]
[1758136958785,3.4488,4485.4,4485.3,0.44589608]
[1758136959581,3.2078,4485.4,4485.3,0.44589608]
[1758136959883,3.4488,4485.4,4485.3,0.44589608]
[1758136961479,3.2078,4485.4,4485.3,0.44589608]
[1758136961677,3.4488,4485.4,4485.3,0.44589608]
[1758136962183,3.2078,4485.4,4485.3,0.44589608]
[1758136962383,3.4488,4485.4,4485.3,0.44589608]
[1758136963286,3.2078,4485.4,4485.3,0.44589608]
[1758136963584,40.8,4486.8,4485.3,0.44589608]
[1758136963585,3.2078,4486.8,4485.3,4.84699608]
[1758136963883,0.241,4486.7,4485.7,3.60886]
[1758136964085,3.4488,4486.8,4485.7,3.2078]
[1758136965078,3.4488,4486.8,4485.9,0.40104]
[1758136965383,3.4488,4486.8,4485.7,3.2078]
[1758136966478,0.241,4486.7,4485.7,3.2078]
[1758136966678,3.2078,4486.8,4485.7,3.38438763]
[1758136966882,0.241,4486.7,4485.7,3.38438763]
[1758136967084,3.2078,4486.8,4485.7,3.38438763]
[1758136967284,0.241,4486.7,4485.7,3.38438763]
[1758136968487,0.241,4486.6,4485.7,3.38438763]
[1758136968683,0.241,4486.5,4485.7,3.38438763]
[1758136969375,3.2078,4487.3,4486.3,3.2078]
[1758136970384,3.4488,4487.3,4486.3,3.2078]
[1758136970782,3.4488,4487.3,4486.3,3.3813289]
[1758136971577,0.241,4487.3,4486.3,3.3813289]
[1758136971779,3.2078,4487.6,4486.3,3.3813289]
[1758136971986,0.241,4487.5,4486.3,3.3813289]
[1758136973086,3.2078,4487.0,4486.3,3.2078]
[1758136973287,0.241,4486.9,4486.3,3.2078]
[1758136975082,3.2078,4486.4,4485.4,3.2078]
[1758136975284,0.241,4486.3,4485.4,3.2078]
[1758136976582,3.2078,4485.7,4485.3,0.44589608]
[1758136976779,0.241,4485.6,4485.3,0.44589608]
[1758136979288,0.46394,4485.6,4485.3,0.44589608]
[1758136979793,4.241,4485.6,4485.3,0.44589608]
[1758136980190,3.2078,4485.7,4485.3,0.44589608]
[1758136980390,0.241,4485.6,4485.3,0.44589608]
[1758136982296,3.2078,4485.7,4485.3,0.44589608]
[1758136982595,0.241,4485.6,4485.3,0.44589608]
[1758136984989,3.2078,4485.7,4485.3,0.44589608]
[1758136985191,0.241,4485.6,4485.3,0.44589608]
[1758136985393,3.2078,4485.7,4485.3,0.44589608]
[1758136985691,0.241,4485.6,4485.3,0.44589608]
[1758136985892,0.241,4485.7,4485.3,0.44589608]
[1758136986295,3.4488,4485.7,4485.3,0.44589608]
[1758136986598,0.241,4485.7,4485.3,0.44589608]
[1758136987296,3.2078,4486.2,4485.3,0.44589608]
[1758136987601,0.241,4486.1,4485.3,0.44589608]
[1758136988396,0.241,4486.0,4485.3,0.44589608]
[1758136988595,39.3258,4486.7,4485.8,3.2078]
[1758136988793,1.81987609,4488.7,4486.4,3.2078]
[1758136988794,3.2078,4487.4,4486.4,3.2078]
[1758136989092,0.241,4487.3,4486.4,3.2078]
[1758136989697,3.2078,4487.4,4486.4,3.2078]
[1758136989897,3.2078,4487.4,4486.4,3.43066999]
[1758136990093,0.241,4487.5,4487.0,3.2078]
[1758136990303,3.2078,4488.1,4487.0,3.2078]
[1758136990595,0.24,4488.0,4487.0,3.2078]
[1758136990790,3.2078,4488.1,4487.0,3.2078]
[1758136990994,3.2078,4488.1,4487.1,0.46284]
[1758136991296,39.3258,4489.4,4488.0,3.2078]
[1758136991490,0.24,4488.9,4488.0,3.2078]
[1758136992492,0.24,4488.9,4486.4,1.96914476]
[1758136992493,3.2078,4488.8,4487.3,3.2078]
[1758136992692,3.2078,4488.3,4487.3,3.2078]
[1758136992892,0.24,4488.2,4487.3,3.2078]
[1758136993493,0.24,4488.2,4486.8,0.17666878]
[1758136993696,0.24,4488.2,4486.7,3.2078]
[1758136994094,3.2078,4487.8,4486.7,3.2078]
[1758136994293,0.24,4487.7,4486.7,3.2078]
[1758136995398,0.24,4487.7,4486.1,3.38449097]
[1758136995592,3.2078,4487.3,4486.1,3.2078]
[1758136995794,0.24,4487.2,4486.1,3.2078]
[1758136997298,0.24,4487.1,4486.1,3.2078]
[1758136998206,0.24,4487.1,4486.1,3.38217988]
[1758136999001,3.2078,4487.3,4486.1,3.38217988]
[1758136999201,0.24,4487.2,4486.1,3.38217988]
[1758137001413,3.4478,4487.3,4486.1,3.38217988]
[1758137002410,3.4478,4487.3,4486.6,3.2078]
[1758137002615,3.2078,4487.3,4486.6,3.2078]
[1758137002818,3.2078,4487.8,4486.6,3.2078]
[1758137003018,0.24,4487.7,4486.6,3.2078]
[1758137003217,3.2078,4487.8,4486.6,3.43066]
[1758137003419,3.2078,4487.8,4487.2,3.2078]
[1758137003821,3.2078,4488.3,4487.2,3.2078]
[1758137004122,3.4478,4488.3,4487.2,3.2078]
[1758137004316,0.24,4488.3,4487.8,3.2078]
[1758137004512,0.24,4488.7,4487.8,3.2078]
[1758137005318,3.2078,4488.9,4487.8,3.2078]
[1758137005518,0.24,4488.8,4487.8,3.2078]
[1758137005708,3.2078,4488.9,4487.8,3.2078]
[1758137006022,0.24,4488.8,4487.8,3.2078]
[1758137006523,3.2078,4488.9,4487.8,3.38467481]
[1758137006814,3.2078,4488.9,4487.8,3.62467481]
[1758137007820,0.24,4489.1,4487.8,3.62467481]
[1758137008720,0.24,4489.1,4488.3,3.2078]
[1758137009220,0.24,4489.1,4487.8,0.17687481]
[1758137009519,3.2078,4488.8,4487.6,3.2078]
[1758137010114,3.2078,4488.8,4487.7,0.1782]
[1758137011118,3.43060001,4488.8,4487.7,0.1782]
[1758137011321,3.2078,4488.3,4487.7,0.1782]
[1758137011522,0.24,4488.2,4487.7,0.1782]
[1758137012917,3.2078,4487.8,4487.7,0.1782]
[1758137013420,3.2078,4487.8,4486.4,3.2078]
[1758137013421,3.43063,4487.8,4486.4,3.2078]
[1758137013624,3.2078,4487.8,4486.4,3.2078]
[1758137013823,0.24,4487.7,4486.4,3.2078]
[1758137014222,3.2078,4487.3,4486.4,3.2078]
[1758137014423,0.24,4487.2,4486.4,3.2078]
[1758137016031,3.2078,4487.3,4486.4,3.2078]
[1758137016218,0.24,4487.2,4486.4,3.2078]
[1758137017124,3.2078,4487.8,4486.4,3.43068]
[1758137017334,0.24,4487.7,4487.0,3.2078]
[1758137017827,36.105,4489.6,4487.6,3.2078]
[1758137018024,0.76195924,4489.5,4488.3,3.2078]
[1758137018225,0.24,4489.5,4488.3,3.2078]
[1758137018420,3.67057,4489.5,4488.3,3.2078]
[1758137019129,3.2078,4489.5,4488.3,3.2078]
[1758137019524,3.2078,4490.0,4488.9,3.2078]
[1758137019722,0.24,4489.9,4488.9,3.2078]
[1758137020428,3.2078,4490.0,4488.9,3.2078]
[1758137020630,0.24,4489.9,4488.9,3.2078]
[1758137021224,3.2078,4490.0,4488.9,3.2078]
[1758137021425,0.24,4489.8,4488.9,3.2078]
[1758137021729,0.24,4489.8,4489.4,3.2078]
[1758137021927,0.24,4489.9,4489.4,3.2078]
[1758137024026,0.24,4489.9,4489.0,0.0222]
[1758137024528,0.239,4489.8,4489.0,0.0222]
[1758137024726,0.239,4489.7,4489.0,0.0222]
[1758137024933,3.4468,4490.0,4489.0,0.0222]
[1758137025128,3.4468,4490.0,4489.0,0.20198401]
[1758137025433,0.239,4490.0,4489.1,3.2078]
[1758137025829,3.4468,4490.0,4489.1,3.2078]
[1758137026732,0.239,4489.9,4489.1,3.2078]
[1758137027033,3.2078,4490.0,4489.1,3.2078]
[1758137027227,3.2078,4490.5,4489.6,3.2078]
[1758137027431,0.239,4490.4,4489.6,3.2078]
[1758137027731,0.46171001,4490.4,4489.1,3.2078]
[1758137027933,0.239,4490.4,4489.1,3.2078]
[1758137028931,0.239,4490.3,4489.1,3.2078]
[1758137029132,3.2078,4491.1,4490.1,3.2078]
[1758137029335,0.239,4491.0,4490.1,3.2078]
[1758137030032,3.2078,4490.6,4489.0,3.40978401]
[1758137030434,0.239,4490.5,4489.0,3.64878401]
[1758137031029,0.239,4490.5,4489.5,3.2078]
[1758137032739,3.2078,4490.6,4489.5,3.2078]
[1758137033035,0.239,4490.5,4489.5,3.2078]
[1758137034541,0.239,4490.5,4489.6,0.239]
[1758137036441,0.239,4490.5,4489.5,3.62219027]
[1758137037635,0.239,4490.5,4489.5,3.38319027]
[1758137037834,0.239,4490.5,4489.5,3.62219027]
[1758137038034,0.239,4490.5,4489.5,3.38319027]
[1758137038434,0.239,4490.5,4489.6,0.22271999]
[1758137038837,0.239,4490.5,4489.5,3.38319027]
[1758137038838,0.239,4490.5,4490.1,3.2078]
[1758137042744,3.4468,4490.7,4490.1,3.2078]
[1758137043440,3.4468,4490.7,4489.6,3.2078]
[1758137043640,3.4468,4490.7,4490.0,0.1781]
[1758137043841,3.2078,4490.7,4490.0,0.1781]
[1758137044844,3.2078,4491.4,4490.1,3.2078]
[1758137045046,0.239,4491.3,4490.1,3.2078]
[1758137045245,0.46168,4491.3,4490.1,3.2078]
[1758137045444,0.239,4491.3,4490.1,3.2078]
[1758137045741,0.22268,4491.2,4490.1,3.2078]
[1758137046151,3.2078,4491.4,4490.6,3.2078]
[1758137046354,0.239,4491.3,4490.6,3.2078]
[1758137046651,3.2078,4491.4,4490.6,3.2078]
[1758137046852,0.239,4491.3,4490.6,3.2078]
[1758137047053,36.095,4491.5,4490.6,3.2078]
[1758137047254,1.58681787,4493.6,4490.0,0.81778]
[1758137047255,3.2078,4492.4,4491.3,3.2078]
[1758137047446,1.58681787,4493.4,4490.5,0.239]
[1758137047447,3.2078,4493.4,4492.0,3.2078]
[1758137047748,3.4468,4493.4,4492.5,3.2078]
[1758137048849,0.239,4493.3,4493.1,3.2078]
[1758137049046,0.239,4493.4,4493.1,3.2078]
[1758137049248,0.239,4493.4,4492.9,0.0222]
[1758137049454,3.2078,4493.3,4491.3,3.2078]
[1758137049747,3.2078,4492.1,4491.3,3.2078]
[1758137049948,0.114,4492.0,4491.3,3.2078]
[1758137050249,0.114,4492.0,4490.8,3.2078]
[1758137050449,0.114,4492.0,4490.3,0.239]
[1758137050650,3.2078,4491.6,4490.2,3.2078]
[1758137050851,0.239,4491.5,4490.2,3.2078]
[1758137053157,0.239,4491.5,4490.3,0.0222]
[1758137053650,3.2078,4491.1,4490.3,0.0222]
[1758137053856,3.2078,4490.6,4490.3,0.0222]
[1758137054156,0.239,4490.5,4490.3,0.0222]
[1758137054562,3.2078,4490.6,4490.3,0.0222]
[1758137054751,0.239,4490.5,4490.3,0.0222]
[1758137055153,3.2078,4490.6,4490.3,0.0222]
[1758137055352,3.2078,4490.6,4490.0,0.1781]
[1758137056052,0.239,4490.7,4490.2,3.2078]
[1758137056754,3.2078,4491.7,4490.2,3.2078]
[1758137056952,0.239,4491.6,4490.9,3.2078]
[1758137057159,0.239,4491.5,4490.9,3.2078]
[1758137058060,0.238,4492.0,4490.9,3.2078]
[1758137058357,0.238,4492.0,4490.9,0.17842556]
[1758137059355,0.238,4492.0,4490.8,3.4458]
[1758137059959,0.238,4492.0,4490.8,3.2078]
[1758137060160,0.238,4492.0,4490.8,3.4458]
[1758137060561,0.238,4492.0,4490.8,3.2078]
[1758137062460,3.2078,4491.7,4490.6,0.0222]
[1758137063660,3.2078,4491.7,4490.9,3.2078]
[1758137064256,0.238,4492.0,4491.4,3.2078]
[1758137066064,3.2078,4492.7,4491.4,3.2078]
[1758137066263,0.75671878,4492.6,4491.4,3.2078]
[1758137066560,0.46062,4492.6,4491.4,3.2078]
[1758137066957,3.2078,4492.2,4491.2,0.17640826]
[1758137067260,3.2078,4492.2,4490.9,3.2078]
[1758137067658,3.2078,4492.2,4490.9,3.38667492]
[1758137067958,1.58681787,4494.3,4492.5,3.2078]
[1758137068160,1.58681787,4495.3,4494.2,3.2078]
[1758137068362,3.2078,4497.7,4495.2,3.2078]
[1758137068561,3.2078,4497.7,4494.3,36.313]
[1758137068562,0.75557885,4497.6,4496.5,3.2078]
[1758137068757,0.51757885,4497.5,4496.5,3.2078]
[1758137068958,0.22237,4497.5,4496.5,3.2078]
[1758137069161,0.22237,4497.5,4497.0,3.2078]
[1758137069361,3.2078,4497.2,4496.4,3.2078]
[1758137070059,0.22238001,4497.1,4496.4,3.2078]
[1758137070254,0.238,4497.0,4495.6,3.2078]
[1758137070461,3.2078,4496.7,4495.6,3.2078]
[1758137070663,0.22241,4496.6,4495.6,3.2078]
[1758137070968,3.2078,4497.3,4496.3,3.2078]
[1758137071268,0.238,4497.2,4496.3,3.2078]
[1758137071470,3.2078,4497.3,4496.3,3.2078]
[1758137071471,0.238,4497.1,4496.3,3.2078]
[1758137072672,0.238,4497.1,4495.8,3.2078]
[1758137072870,3.2078,4496.8,4495.8,3.2078]
[1758137073266,3.2078,4496.3,4495.2,3.2078]
[1758137073465,0.238,4496.2,4495.7,3.2078]
[1758137073667,0.238,4496.1,4495.7,3.2078]
[1758137073870,0.238,4496.0,4495.7,3.2078]
[1758137074568,3.2078,4497.5,4495.7,3.2078]
[1758137074870,0.238,4497.4,4496.4,3.2078]
[1758137076165,3.2078,4497.5,4496.9,3.2078]
[1758137076364,36.072,4497.7,4496.9,3.2078]
[1758137076964,3.2078,4498.1,4496.9,3.2078]
[1758137077168,3.2078,4499.0,4497.9,3.2078]
[1758137077371,0.26,4498.2,4497.9,3.2078]
[1758137077567,0.26,4498.2,4497.4,3.2078]
[1758137078565,0.022,4498.2,4497.4,3.2078]
[1758137078766,0.15,4498.1,4497.4,3.2078]
[1758137079067,0.022,4498.2,4497.4,3.2078]
[1758137079269,0.022,4498.2,4497.0,0.17667889]
[1758137079270,0.022,4498.2,4497.9,3.2078]
[1758137082070,0.022,4498.2,4497.4,3.2078]
[1758137082371,0.022,4498.2,4497.9,3.2078]
[1758137084777,0.022,4498.2,4497.4,3.2078]
[1758137085675,0.238,4498.1,4497.4,3.2078]
[1758137086272,0.022,4498.2,4497.4,3.2078]
[1758137086571,0.238,4498.1,4497.4,3.2078]
[1758137086772,0.022,4498.2,4497.4,3.2078]
[1758137087077,0.238,4498.1,4497.4,3.2078]
[1758137087577,0.26,4498.2,4497.4,3.2078]
[1758137087874,0.26,4498.2,4498.0,3.2078]
[1758137087875,0.022,4498.2,4498.0,3.2078]
[1758137088070,0.238,4498.1,4498.0,3.2078]
[1758137089574,0.238,4498.1,4497.5,3.2078]
[1758137089770,0.238,4498.0,4497.5,3.2078]
[1758137090971,0.022,4498.2,4497.5,3.2078]
[1758137091273,0.238,4498.1,4497.5,3.2078]
[1758137091673,0.022,4498.2,4497.5,3.2078]
[1758137092474,0.26,4498.2,4498.0,3.2078]
[1758137093266,0.238,4498.1,4498.0,3.2078]
[1758137093471,0.022,4498.2,4498.0,3.2078]
[1758137093868,0.26,4498.2,4498.0,3.2078]
[1758137094772,0.022,4498.2,4498.0,3.2078]
[1758137095368,4.0,4498.1,4496.7,3.2078]
[1758137095576,3.2078,4497.5,4496.2,3.2078]
[1758137095971,3.2078,4497.0,4496.1,0.1779]
[1758137096184,3.2078,4497.0,4496.3,0.238]
[1758137096477,3.2078,4497.0,4496.1,0.1779]
[1758137096675,3.2078,4497.0,4496.2,3.4458]
[1758137097179,3.2078,4497.0,4496.1,0.1779]
[1758137097373,3.2078,4497.0,4496.1,0.9651807]
[1758137097574,3.2078,4497.0,4496.1,0.1779]
[1758137097880,3.2078,4497.0,4496.2,0.7872807]
[1758137098080,3.2078,4497.0,4496.3,0.7872807]
[1758137098282,3.2078,4497.0,4496.5,0.7872807]
[1758137098484,3.2078,4497.0,4496.4,0.7872807]
[1758137098782,3.2078,4497.0,4496.5,0.7872807]
[1758137099279,3.2078,4497.0,4496.4,0.7872807]
[1758137099780,3.2078,4497.0,4496.5,0.238]
[1758137099973,3.2078,4497.0,4496.5,1.0252807]
[1758137100177,3.2078,4497.0,4496.5,0.7872807]
[1758137100376,3.2078,4497.0,4496.6,0.7872807]
[1758137100880,3.2078,4497.6,4496.6,0.7872807]
[1758137101078,3.2078,4497.6,4496.6,0.238]
[1758137101283,3.2078,4497.6,4496.6,1.0252807]
[1758137101479,3.2078,4497.6,4497.1,0.7872807]
[1758137101685,3.2298,4498.2,4497.3,0.7872807]
[1758137102085,3.2078,4497.5,4496.9,0.7872807]
[1758137103190,3.2078,4498.0,4497.0,0.9650807]
[1758137103490,3.2078,4498.0,4497.2,0.7872807]
[1758137104284,0.022,4498.2,4497.6,3.2078]
[1758137104489,0.022,4498.2,4497.8,0.7872807]
[1758137104690,0.022,4498.2,4498.1,0.7872807]
[1758137105190,0.022,4498.2,4497.8,1.19373619]
[1758137105386,0.022,4498.2,4497.9,1.19373619]
[1758137105593,0.022,4498.2,4498.1,3.2078]
[1758137105794,0.238,4499.6,4498.1,3.4458]
[1758137105996,0.238,4499.6,4498.9,0.79791107]
[1758137106193,3.65373065,4499.3,4498.4,1.19686661]
[1758137106389,3.2078,4499.3,4498.5,0.238]